Workbook

Sheet Title
U27: URL linked to this QR PI
U28: Dupixent (dupilumab) (COPD) PI UK
B41: MAT-XU-2501793 (v1.0)
B42: Date of preparation: July 2025

Sheet Assumptions

Sheet Overview

Sheet ICS
C4: ICS Overview 23-24 (2)
H7: ICS
H9: Joined up care Derbyshire (I19)
C17: Costs associated with COPD non-elective admissions
E19: Severe exacerbations (9)
E21: Resources | F21: Frequency per exacerbation | G21: Unit costs | H21: Average cost per exacerbation
E22: Ambulance transport | F22: 0.7 | G22: 244.09 | H22: =F22*G22 -> 170.863 | K22: Annual per patient cost | N22: =H34*'Data (to be hidden)'!C12 -> 5445.823552
E23: A&E admission | F23: 0.88 | G23: 312.49 | H23: =F23*G23 -> 274.9912
E24: Hospital stay (LOS) | F24: 1 | G24: ='Data (to be hidden)'!C11 -> 2574.01 | H24: =F24*G24 -> 2574.01
E25: ICU (LOS) | F25: 0.01 | G25: 2330.22 | H25: 23.3022
E26: Readmission within 30 days | F26: 0.14 | G26: 3239.4 | H26: 453.516
E27: Ventilation | F27: 0.07 | G27: 1080.62 | H27: 75.6434 | K27: Annual population cost | N27: =N22*'Data (to be hidden)'!C9 -> 8686088.565
E28: Oxygen therapy | F28: 0.02 | G28: 265.57 | H28: 5.3114
E29: CT scan | F29: 0.1 | G29: 114.61 | H29: 11.461
E30: Echocardiogram | F30: 0.05 | G30: 91.6 | H30: 4.58
E31: CPAP therapy | F31: 0.01 | G31: 1080.62 | H31: 10.8062
E32: Follow-up outpatient appointments within 30 days of exacerbation | F32: 0.18 | G32: 166.77 | H32: 30.0186
E33: Follow-up outpatient appointments within 90 days of exacerbation | F33: 0.37 | G33: 166.77 | H33: 61.7049
E34: Total per exacerbation | H34: =SUM(H22:H33) -> 3696.2079
C36: Impact of reduced exacerbations
E40: Percentage of admitted patients on triple therapy: | H40: 0.4
E42: Percentage of triple therapy patients with raised EOS | H42: 0.4
E44: Number admitted patients eligible for Dupixent | H44: ='Data (to be hidden)'!G8 -> 255.2
E46: Reduction in severe exacerbations whilst on Dupixent: | H46: 0.32

Sheet Trust
C4: Trust Overview 23-24 (2)
H7: Trust
H9: UNIVERSITY HOSPITALS OF NORTH MIDLANDS NHS TRUST
C17: Costs associated with COPD
E19: Severe exacerbations (9)
E21: Resources | F21: Frequency per exacerbation | G21: Unit costs | H21: Average cost per exacerbation
E22: Ambulance transport | F22: 0.7 | G22: 244.09 | H22: =G22*F22 -> 170.863 | K22: Annual cost per patient | N22: =H34*'Data (to be hidden)'!C30 -> 5543.278063
E23: A&E admission | F23: 0.88 | G23: 312.49 | H23: =G23*F23 -> 274.9912
E24: Hospital stay (LOS) | F24: 1 | G24: ='Data (to be hidden)'!C29 -> 2355.051883 | H24: 2355.051883
E25: ICU (LOS) | F25: 0.01 | G25: 2330.22 | H25: 23.3022
E26: Readmission within 30 days | F26: 0.14 | G26: 3239.4 | H26: 453.516
E27: Ventilation | F27: 0.07 | G27: 1080.62 | H27: 75.6434 | K27: Annual population cost | N27: =N22*'Data (to be hidden)'!C27 -> 8536648.217
E28: Oxygen therapy | F28: 0.02 | G28: 265.57 | H28: 5.3114
E29: CT scan | F29: 0.1 | G29: 114.61 | H29: 11.461
E30: Echocardiogram | F30: 0.05 | G30: 91.6 | H30: 4.58
E31: CPAP therapy | F31: 0.01 | G31: 1080.62 | H31: 10.8062
E32: Follow-up outpatient appointments within 30 days of exacerbation | F32: 0.18 | G32: 166.77 | H32: 30.0186
E33: Follow-up outpatient appointments within 90 days of exacerbation | F33: 0.37 | G33: 166.77 | H33: 61.7049
E34: Total per exacerbation | H34: =SUM(H22:H33) -> 3477.249783
C36: Impact of reduced exacerbations
E40: Percentage of admitted patients on triple therapy: | H40: 0.4
E42: Percentage of triple therapy patients with rasied EOS | H42: 0.4
E44: Number admitted patients eligible for Dupixent | H44: ='Data (to be hidden)'!G26 -> 246.4
E46: Reduction in severe exacerbations: | H46: 0.32

Sheet Data (to be hidden) (hidden)
B3: Selected ICS Data | O3: Provider Trust | P3: Admissions | Q3: Patients | R3: Total Bed days | S3: Avg. Bed Days | T3: Avg. Cost | U3: Average Admissions per Patient | V3: % Readmitted within 30 days | W3: % Readmitted within 90 days | Y3: ICS Provider View | Z3: Total Bed Days (sum) | AA3: Total Bed Days (average) | AB3: Total Cost (sum) | AC3: Patient (count) | AD3: Admissions (count) | AE3: Admissions per patient | AF3: Total Cost (average) | AG3: % Readmitted within 30 days | AH3: % Readmitted within 90 days
O4: AIREDALE NHS FOUNDATION TRUST | P4: 595 | Q4: 340 | R4: 2535 | S4: =Trust[[#This Row],[Total Bed days]]/Trust[[#This Row],[Admissions]] -> 4.260504202 | T4: 1916.057475 | U4: =Trust[[#This Row],[Admissions]]/Trust[[#This Row],[Patients]] -> 1.75 | V4: 0.09917355372 | W4: 0.1818181818 | Y4: Bath and North East Somerset, Swindon and Wiltshire Integrated Care System (I07) | Z4: 9855 | AA4: =ICS[[#This Row],[Total Bed Days (sum)]]/ICS[[#This Row],[Admissions (count)]] -> 5.355978261 | AB4: 4102805.07 | AC4: 1320 | AD4: 1840 | AE4: =ICS[[#This Row],[Admissions (count)]]/ICS[[#This Row],[Patient (count)]] -> 1.393939394 | AF4: 2316.66 | AG4: 0.09736842105 | AH4: 0.1736842105
B5: ICS | C5: =ICS!H9 -> Joined up care Derbyshire (I19) | O5: ALDER HEY CHILDREN'S NHS FOUNDATION TRUST | P5: 7 | Q5: 7 | R5: 15 | S5: =Trust[[#This Row],[Total Bed days]]/Trust[[#This Row],[Admissions]] -> 2.142857143 | T5: 9587.689 | U5: =Trust[[#This Row],[Admissions]]/Trust[[#This Row],[Patients]] -> 1 | Y5: Bedfordshire, Luton and Milton Keynes Integrated Care System (I21) | Z5: 12770 | AA5: =ICS[[#This Row],[Total Bed Days (sum)]]/ICS[[#This Row],[Admissions (count)]] -> 5.995305164 | AB5: 6375459.65 | AC5: 1375 | AD5: 2130 | AE5: =ICS[[#This Row],[Admissions (count)]]/ICS[[#This Row],[Patient (count)]] -> 1.549090909 | AF5: 2994.58 | AG5: 0.08486238532 | AH5: 0.1766055046
O6: ASHFORD AND ST PETER'S HOSPITALS NHS FOUNDATION TRUST | P6: 530 | Q6: 365 | R6: 3000 | S6: =Trust[[#This Row],[Total Bed days]]/Trust[[#This Row],[Admissions]] -> 5.660377358 | T6: 2830.175605 | U6: =Trust[[#This Row],[Admissions]]/Trust[[#This Row],[Patients]] -> 1.452054795 | V6: 0.07692307692 | W6: 0.1623931624 | Y6: Birmingham and Solihull Integrated Care System (I18) | Z6: 22940 | AA6: =ICS[[#This Row],[Total Bed Days (sum)]]/ICS[[#This Row],[Admissions (count)]] -> 5.120535714 | AB6: 11373187.27 | AC6: 3160 | AD6: 4480 | AE6: =ICS[[#This Row],[Admissions (count)]]/ICS[[#This Row],[Patient (count)]] -> 1.417721519 | AF6: 2777.34 | AG6: 0.1079913607 | AH6: 0.2095032397
B7: Original Population | F7: Future Population | J7: Change | O7: BARKING, HAVERING AND REDBRIDGE UNIVERSITY HOSPITALS NHS TRUST | P7: 1260 | Q7: 730 | R7: 7460 | S7: =Trust[[#This Row],[Total Bed days]]/Trust[[#This Row],[Admissions]] -> 5.920634921 | T7: 2763.228815 | U7: =Trust[[#This Row],[Admissions]]/Trust[[#This Row],[Patients]] -> 1.726027397 | V7: 0.1373239437 | W7: 0.2323943662 | Y7: Bristol, North Somerset and South Gloucestershire Integrated Care System (I08) | Z7: 14460 | AA7: =ICS[[#This Row],[Total Bed Days (sum)]]/ICS[[#This Row],[Admissions (count)]] -> 5.192100539 | AB7: 5028570.52 | AC7: 1895 | AD7: 2785 | AE7: =ICS[[#This Row],[Admissions (count)]]/ICS[[#This Row],[Patient (count)]] -> 1.469656992 | AF7: 2297.2 | AG7: 0.07853403141 | AH7: 0.1588132635
B8: Admissions | C8: =_xlfn.XLOOKUP(C5,ICS[ICS Provider View],ICS[Admissions (count)],"") -> 2350 | F8: Eligible dupi patients | G8: =IF(ICS!H46>0.3226,"",(C9*ICS!H40)*ICS!H42) -> 255.2 | J8: Cost | K8: =G15-C15 -> -444727.7345 | O8: BARNSLEY HOSPITAL NHS FOUNDATION TRUST | P8: 1160 | Q8: 800 | R8: 6380 | S8: =Trust[[#This Row],[Total Bed days]]/Trust[[#This Row],[Admissions]] -> 5.5 | T8: 3002.700864 | U8: =Trust[[#This Row],[Admissions]]/Trust[[#This Row],[Patients]] -> 1.45 | V8: 0.1071428571 | W8: 0.1984126984 | Y8: Buckinghamshire, Oxfordshire and Berkshire West Integrated Care System (I13) | Z8: 11350 | AA8: =ICS[[#This Row],[Total Bed Days (sum)]]/ICS[[#This Row],[Admissions (count)]] -> 4.424951267 | AB8: 5890309.04 | AC8: 1705 | AD8: 2565 | AE8: =ICS[[#This Row],[Admissions (count)]]/ICS[[#This Row],[Patient (count)]] -> 1.504398827 | AF8: 2299.11 | AG8: 0.1119544592 | AH8: 0.1878557875
B9: Patients | C9: =_xlfn.XLOOKUP(C5,ICS[ICS Provider View],ICS[Patient (count)],"") -> 1595 | F9: Admissions per biologic patient | G9: =C12*(1-ICS!H46) -> 1.001880878 | J9: Admissions | K9: =G12-C8 -> -120.32 | O9: BARTS HEALTH NHS TRUST | P9: 1160 | Q9: 750 | R9: 8005 | S9: =Trust[[#This Row],[Total Bed days]]/Trust[[#This Row],[Admissions]] -> 6.900862069 | T9: 3712.901497 | U9: =Trust[[#This Row],[Admissions]]/Trust[[#This Row],[Patients]] -> 1.546666667 | V9: 0.1003460208 | W9: 0.1799307958 | Y9: Cambridgeshire & Peterborough Integrated Care System (I41) | Z9: 13265 | AA9: =ICS[[#This Row],[Total Bed Days (sum)]]/ICS[[#This Row],[Admissions (count)]] -> 6.362110312 | AB9: 5594499.29 | AC9: 1330 | AD9: 2085 | AE9: =ICS[[#This Row],[Admissions (count)]]/ICS[[#This Row],[Patient (count)]] -> 1.567669173 | AF9: 2703.96 | AG9: 0.05964214712 | AH9: 0.1252485089
B10: Avg. Bed Days | C10: =_xlfn.XLOOKUP(C5,ICS[ICS Provider View],ICS[Total Bed Days (average)],"") -> 5.604255319 | F10: Admissions biologic patients | G10: =G9*G8 -> 255.68 | J10: Bed days | K10: =G16-C13 -> -674.304 | O10: BEDFORDSHIRE HOSPITALS NHS FOUNDATION TRUST | P10: 1405 | Q10: 935 | R10: 7280 | S10: =Trust[[#This Row],[Total Bed days]]/Trust[[#This Row],[Admissions]] -> 5.181494662 | T10: 2929.069467 | U10: =Trust[[#This Row],[Admissions]]/Trust[[#This Row],[Patients]] -> 1.502673797 | V10: 0.08275862069 | W10: 0.1724137931 | Y10: Cheshire and Merseyside Health and Care Partnership (I30) | Z10: 41045 | AA10: =ICS[[#This Row],[Total Bed Days (sum)]]/ICS[[#This Row],[Admissions (count)]] -> 5.238672623 | AB10: 19309457.8 | AC10: 5250 | AD10: 7835 | AE10: =ICS[[#This Row],[Admissions (count)]]/ICS[[#This Row],[Patient (count)]] -> 1.492380952 | AF10: 2470.5 | AG10: 0.08908406524 | AH10: 0.1794228356
B11: Avg. Cost per admission | C11: =_xlfn.XLOOKUP(C5,ICS[ICS Provider View],ICS[Total Cost (average)],"") -> 2574.01 | F11: Admissions rest of population | G11: =(C9-G8)*C12 -> 1974 | O11: BERKSHIRE HEALTHCARE NHS FOUNDATION TRUST | P11: 7 | Q11: 7 | R11: 105 | S11: =Trust[[#This Row],[Total Bed days]]/Trust[[#This Row],[Admissions]] -> 15 | T11: 4529.6224 | U11: =Trust[[#This Row],[Admissions]]/Trust[[#This Row],[Patients]] -> 1 | Y11: Cornwall and the Isles of Scilly Integrated Care System (I09) | Z11: 3930 | AA11: =ICS[[#This Row],[Total Bed Days (sum)]]/ICS[[#This Row],[Admissions (count)]] -> 4.295081967 | AB11: 1859477.39 | AC11: 560 | AD11: 915 | AE11: =ICS[[#This Row],[Admissions (count)]]/ICS[[#This Row],[Patient (count)]] -> 1.633928571 | AF11: 2032.22 | AG11: 0.07614213198 | AH11: 0.1370558376
B12: Admissions per patient | C12: =_xlfn.XLOOKUP(C5,ICS[ICS Provider View],ICS[Admissions per patient],"") -> 1.473354232 | F12: Future Population Admissions | G12: =G10+G11 -> 2229.68 | O12: BIRMINGHAM WOMEN'S AND CHILDREN'S NHS FOUNDATION TRUST | P12: 7 | Q12: 7 | R12: 15 | S12: =Trust[[#This Row],[Total Bed days]]/Trust[[#This Row],[Admissions]] -> 2.142857143 | T12: 9639.746 | U12: =Trust[[#This Row],[Admissions]]/Trust[[#This Row],[Patients]] -> 1 | Y12: Coventry and Warwickshire Integrated Care System (I33) | Z12: 12715 | AA12: =ICS[[#This Row],[Total Bed Days (sum)]]/ICS[[#This Row],[Admissions (count)]] -> 5.342436975 | AB12: 5490821.38 | AC12: 1605 | AD12: 2380 | AE12: =ICS[[#This Row],[Admissions (count)]]/ICS[[#This Row],[Patient (count)]] -> 1.482866044 | AF12: 2311.92 | AG12: 0.08712871287 | AH12: 0.1663366337
B13: Total Bed Days | C13: =_xlfn.XLOOKUP(C5,ICS[ICS Provider View],ICS[Total Bed Days (sum)],"") -> 13170 | F13: Admission cost for biologic pop | G13: =G10*ICS!H34 -> 945046.4359 | O13: BLACKPOOL TEACHING HOSPITALS NHS FOUNDATION TRUST | P13: 1065 | Q13: 820 | R13: 6805 | S13: =Trust[[#This Row],[Total Bed days]]/Trust[[#This Row],[Admissions]] -> 6.389671362 | T13: 2635.64186 | U13: =Trust[[#This Row],[Admissions]]/Trust[[#This Row],[Patients]] -> 1.298780488 | V13: 0.0686695279 | W13: 0.1373390558 | Y13: Devon Integrated Care System (I31) | Z13: 14015 | AA13: =ICS[[#This Row],[Total Bed Days (sum)]]/ICS[[#This Row],[Admissions (count)]] -> 4.742808799 | AB13: 6175084.42 | AC13: 1895 | AD13: 2955 | AE13: =ICS[[#This Row],[Admissions (count)]]/ICS[[#This Row],[Patient (count)]] -> 1.559366755 | AF13: 2093.96 | AG13: 0.1055276382 | AH13: 0.2010050251
B14: Patients eligible for biologics | C14: =C9*ICS!H40 -> 638 | F14: Admission cost for rest of pop | G14: =G11*ICS!H34 -> 7296314.395 | O14: BOLTON NHS FOUNDATION TRUST | P14: 765 | Q14: 500 | R14: 5185 | S14: =Trust[[#This Row],[Total Bed days]]/Trust[[#This Row],[Admissions]] -> 6.777777778 | T14: 2276.616068 | U14: =Trust[[#This Row],[Admissions]]/Trust[[#This Row],[Patients]] -> 1.53 | V14: 0.1156069364 | W14: 0.2196531792 | Y14: Dorset Integrated Care System (I10) | Z14: 10550 | AA14: =ICS[[#This Row],[Total Bed Days (sum)]]/ICS[[#This Row],[Admissions (count)]] -> 5.023809524 | AB14: 4820387.2 | AC14: 1330 | AD14: 2100 | AE14: =ICS[[#This Row],[Admissions (count)]]/ICS[[#This Row],[Patient (count)]] -> 1.578947368 | AF14: 2293.24 | AG14: 0.0979020979 | AH14: 0.1934731935
B15: Total Cost | C15: =ICS!N27 -> 8686088.565 | F15: Future Total Cost | G15: =G13+G14 -> 8241360.83 | O15: BRADFORD TEACHING HOSPITALS NHS FOUNDATION TRUST | P15: 785 | Q15: 515 | R15: 4925 | S15: =Trust[[#This Row],[Total Bed days]]/Trust[[#This Row],[Admissions]] -> 6.27388535 | T15: 1786.511834 | U15: =Trust[[#This Row],[Admissions]]/Trust[[#This Row],[Patients]] -> 1.524271845 | V15: 0.1075268817 | W15: 0.2204301075 | Y15: Frimley Health and Care (I14) | Z15: 7390 | AA15: =ICS[[#This Row],[Total Bed Days (sum)]]/ICS[[#This Row],[Admissions (count)]] -> 6.874418605 | AB15: 3233258.88 | AC15: 725 | AD15: 1075 | AE15: =ICS[[#This Row],[Admissions (count)]]/ICS[[#This Row],[Patient (count)]] -> 1.482758621 | AF15: 3016.1 | AG15: 0.0796460177 | AH15: 0.1637168142
B16: Readmission within 30 days | C16: =_xlfn.XLOOKUP(C5,ICS[ICS Provider View],ICS[% Readmitted within 30 days]) -> 0.09355509356 | F16: Future Total Bed Days | G16: =G12*C10 -> 12495.696 | O16: BUCKINGHAMSHIRE HEALTHCARE NHS TRUST | P16: 470 | Q16: 350 | R16: 2410 | S16: =Trust[[#This Row],[Total Bed days]]/Trust[[#This Row],[Admissions]] -> 5.127659574 | T16: 2618.480322 | U16: =Trust[[#This Row],[Admissions]]/Trust[[#This Row],[Patients]] -> 1.342857143 | V16: 0.09708737864 | W16: 0.1747572816 | Y16: Greater Manchester Integrated Care Partnership (I05) | Z16: 44255 | AA16: =ICS[[#This Row],[Total Bed Days (sum)]]/ICS[[#This Row],[Admissions (count)]] -> 4.933667781 | AB16: 22216665.27 | AC16: 5700 | AD16: 8970 | AE16: =ICS[[#This Row],[Admissions (count)]]/ICS[[#This Row],[Patient (count)]] -> 1.573684211 | AF16: 2480.65 | AG16: 0.1228354978 | AH16: 0.2202380952
B17: Readmission within 90 days | C17: =_xlfn.XLOOKUP(C5,ICS[ICS Provider View],ICS[% Readmitted within 90 days],) -> 0.182952183 | O17: CALDERDALE AND HUDDERSFIELD NHS FOUNDATION TRUST | P17: 1110 | Q17: 740 | R17: 5460 | S17: =Trust[[#This Row],[Total Bed days]]/Trust[[#This Row],[Admissions]] -> 4.918918919 | T17: 2213.821461 | U17: =Trust[[#This Row],[Admissions]]/Trust[[#This Row],[Patients]] -> 1.5 | V17: 0.1121076233 | W17: 0.2152466368 | Y17: Hampshire and Isle of Wight Integrated Care System (I15) | Z17: 24570 | AA17: =ICS[[#This Row],[Total Bed Days (sum)]]/ICS[[#This Row],[Admissions (count)]] -> 5.622425629 | AB17: 11355299.3 | AC17: 2695 | AD17: 4370 | AE17: =ICS[[#This Row],[Admissions (count)]]/ICS[[#This Row],[Patient (count)]] -> 1.621521336 | AF17: 2608.02 | AG17: 0.1339187706 | AH17: 0.241492865
O18: CAMBRIDGE UNIVERSITY HOSPITALS NHS FOUNDATION TRUST | P18: 680 | Q18: 415 | R18: 4295 | S18: =Trust[[#This Row],[Total Bed days]]/Trust[[#This Row],[Admissions]] -> 6.316176471 | T18: 2911.898694 | U18: =Trust[[#This Row],[Admissions]]/Trust[[#This Row],[Patients]] -> 1.638554217 | V18: 0.0652173913 | W18: 0.152173913 | Y18: Herefordshire and Worcestershire Integrated Care System (I34) | Z18: 8610 | AA18: =ICS[[#This Row],[Total Bed Days (sum)]]/ICS[[#This Row],[Admissions (count)]] -> 5.155688623 | AB18: 4042903.52 | AC18: 1205 | AD18: 1670 | AE18: =ICS[[#This Row],[Admissions (count)]]/ICS[[#This Row],[Patient (count)]] -> 1.385892116 | AF18: 2422.35 | AG18: 0.07246376812 | AH18: 0.1391304348
O19: CHELSEA AND WESTMINSTER HOSPITAL NHS FOUNDATION TRUST | P19: 900 | Q19: 500 | R19: 4515 | S19: =Trust[[#This Row],[Total Bed days]]/Trust[[#This Row],[Admissions]] -> 5.016666667 | T19: 2701.133892 | U19: =Trust[[#This Row],[Admissions]]/Trust[[#This Row],[Patients]] -> 1.8 | V19: 0.1323529412 | W19: 0.2352941176 | Y19: Hertfordshire and West Essex Integrated Care System (I22) | Z19: 12960 | AA19: =ICS[[#This Row],[Total Bed Days (sum)]]/ICS[[#This Row],[Admissions (count)]] -> 5.574193548 | AB19: 6124308.61 | AC19: 1510 | AD19: 2325 | AE19: =ICS[[#This Row],[Admissions (count)]]/ICS[[#This Row],[Patient (count)]] -> 1.539735099 | AF19: 2635.24 | AG19: 0.08368200837 | AH19: 0.1652719665
O20: CHESTERFIELD ROYAL HOSPITAL NHS FOUNDATION TRUST | P20: 475 | Q20: 315 | R20: 2120 | S20: =Trust[[#This Row],[Total Bed days]]/Trust[[#This Row],[Admissions]] -> 4.463157895 | T20: 2061.70828 | U20: =Trust[[#This Row],[Admissions]]/Trust[[#This Row],[Patients]] -> 1.507936508 | V20: 0.1226415094 | W20: 0.2075471698 | Y20: Humber and North Yorkshire Health and Care Partnership (I01) | Z20: 23725 | AA20: =ICS[[#This Row],[Total Bed Days (sum)]]/ICS[[#This Row],[Admissions (count)]] -> 5.064034152 | AB20: 11011135.23 | AC20: 3165 | AD20: 4685 | AE20: =ICS[[#This Row],[Admissions (count)]]/ICS[[#This Row],[Patient (count)]] -> 1.480252765 | AF20: 2374.11 | AG20: 0.1069114471 | AH20: 0.2030237581
B21: Selected Trust Data | O21: CORNWALL PARTNERSHIP NHS FOUNDATION TRUST | P21: 30 | Q21: 30 | R21: 410 | S21: =Trust[[#This Row],[Total Bed days]]/Trust[[#This Row],[Admissions]] -> 13.66666667 | T21: 2674.842774 | U21: =Trust[[#This Row],[Admissions]]/Trust[[#This Row],[Patients]] -> 1 | V21: 0.09333333333 | W21: 0.09333333333 | Y21: Joined up care Derbyshire (I19) | Z21: 13170 | AA21: =ICS[[#This Row],[Total Bed Days (sum)]]/ICS[[#This Row],[Admissions (count)]] -> 5.604255319 | AB21: 5945970.52 | AC21: 1595 | AD21: 2350 | AE21: =ICS[[#This Row],[Admissions (count)]]/ICS[[#This Row],[Patient (count)]] -> 1.473354232 | AF21: 2574.01 | AG21: 0.09355509356 | AH21: 0.182952183
O22: COUNTESS OF CHESTER HOSPITAL NHS FOUNDATION TRUST | P22: 610 | Q22: 420 | R22: 3815 | S22: =Trust[[#This Row],[Total Bed days]]/Trust[[#This Row],[Admissions]] -> 6.254098361 | T22: 2526.620585 | U22: =Trust[[#This Row],[Admissions]]/Trust[[#This Row],[Patients]] -> 1.452380952 | V22: 0.06451612903 | W22: 0.1451612903 | Y22: Kent and Medway Integrated Care System (I32) | Z22: 24125 | AA22: =ICS[[#This Row],[Total Bed Days (sum)]]/ICS[[#This Row],[Admissions (count)]] -> 6.546811398 | AB22: 10607889.22 | AC22: 2730 | AD22: 3685 | AE22: =ICS[[#This Row],[Admissions (count)]]/ICS[[#This Row],[Patient (count)]] -> 1.34981685 | AF22: 2888.07 | AG22: 0.07849829352 | AH22: 0.1467576792
B23: Trust | C23: =Trust!H9 -> UNIVERSITY HOSPITALS OF NORTH MIDLANDS NHS TRUST | O23: COUNTY DURHAM AND DARLINGTON NHS FOUNDATION TRUST | P23: 1790 | Q23: 1150 | R23: 9390 | S23: =Trust[[#This Row],[Total Bed days]]/Trust[[#This Row],[Admissions]] -> 5.245810056 | T23: 2316.298151 | U23: =Trust[[#This Row],[Admissions]]/Trust[[#This Row],[Patients]] -> 1.556521739 | V23: 0.1266846361 | W23: 0.2425876011 | Y23: Lancashire and South Cumbria Health and Care Partnership (I06) | Z23: 23835 | AA23: =ICS[[#This Row],[Total Bed Days (sum)]]/ICS[[#This Row],[Admissions (count)]] -> 5.792223572 | AB23: 10506023.55 | AC23: 2945 | AD23: 4115 | AE23: =ICS[[#This Row],[Admissions (count)]]/ICS[[#This Row],[Patient (count)]] -> 1.397283531 | AF23: 2559.95 | AG23: 0.0775 | AH23: 0.155
O24: CROYDON HEALTH SERVICES NHS TRUST | P24: 525 | Q24: 325 | R24: 4655 | S24: =Trust[[#This Row],[Total Bed days]]/Trust[[#This Row],[Admissions]] -> 8.866666667 | T24: 3479.892243 | U24: =Trust[[#This Row],[Admissions]]/Trust[[#This Row],[Patients]] -> 1.615384615 | V24: 0.07476635514 | W24: 0.1588785047 | Y24: Leicester, Leicestershire and Rutland Integrated Care System (I35) | Z24: 15925 | AA24: =ICS[[#This Row],[Total Bed Days (sum)]]/ICS[[#This Row],[Admissions (count)]] -> 5.975609756 | AB24: 6283115.14 | AC24: 1700 | AD24: 2665 | AE24: =ICS[[#This Row],[Admissions (count)]]/ICS[[#This Row],[Patient (count)]] -> 1.567647059 | AF24: 2362.96 | AG24: 0.1254480287 | AH24: 0.2329749104
B25: Original Population | F25: Future Population | J25: Change | O25: DARTFORD AND GRAVESHAM NHS TRUST | P25: 670 | Q25: 505 | R25: 5620 | S25: =Trust[[#This Row],[Total Bed days]]/Trust[[#This Row],[Admissions]] -> 8.388059701 | T25: 3155.094143 | U25: =Trust[[#This Row],[Admissions]]/Trust[[#This Row],[Patients]] -> 1.326732673 | V25: 0.08163265306 | W25: 0.1768707483 | Y25: Lincolnshire Integrated Care System (I36) | Z25: 9115 | AA25: =ICS[[#This Row],[Total Bed Days (sum)]]/ICS[[#This Row],[Admissions (count)]] -> 5.768987342 | AB25: 4359517.21 | AC25: 1130 | AD25: 1580 | AE25: =ICS[[#This Row],[Admissions (count)]]/ICS[[#This Row],[Patient (count)]] -> 1.398230088 | AF25: 2760.94 | AG25: 0.09345794393 | AH25: 0.1682242991
B26: Admissions | C26: =_xlfn.XLOOKUP(C23,Trust[Provider Trust],Trust[Admissions]) -> 2455 | F26: Eligible biologic patients | G26: =IF(Trust!H46>0.3226,"",((C27*Trust!H40)*Trust!H42)) -> 246.4 | J26: Cost | K26: =G33-C33 -> -437076.3887 | O26: DERBYSHIRE COMMUNITY HEALTH SERVICES NHS FOUNDATION TRUST | P26: 20 | Q26: 20 | R26: 455 | S26: =Trust[[#This Row],[Total Bed days]]/Trust[[#This Row],[Admissions]] -> 22.75 | T26: 5026.238 | U26: =Trust[[#This Row],[Admissions]]/Trust[[#This Row],[Patients]] -> 1 | V26: 0.35 | W26: 0.35 | Y26: Mid and South Essex Integrated Care System (I42) | Z26: 14945 | AA26: =ICS[[#This Row],[Total Bed Days (sum)]]/ICS[[#This Row],[Admissions (count)]] -> 5.597378277 | AB26: 7039532.53 | AC26: 1800 | AD26: 2670 | AE26: =ICS[[#This Row],[Admissions (count)]]/ICS[[#This Row],[Patient (count)]] -> 1.483333333 | AF26: 2637.52 | AG26: 0.0933572711 | AH26: 0.1849192101
B27: Patients | C27: =_xlfn.XLOOKUP(C23,Trust[Provider Trust],Trust[Patients]) -> 1540 | F27: Admissions per biologic patient | G27: =C30*(1-Trust!H46) -> 1.084025974 | J27: Admissions | K27: =G30-C26 -> -125.696 | O27: DONCASTER AND BASSETLAW TEACHING HOSPITALS NHS FOUNDATION TRUST | P27: 1285 | Q27: 845 | R27: 5765 | S27: =Trust[[#This Row],[Total Bed days]]/Trust[[#This Row],[Admissions]] -> 4.486381323 | T27: 2093.341447 | U27: =Trust[[#This Row],[Admissions]]/Trust[[#This Row],[Patients]] -> 1.520710059 | V27: 0.09505703422 | W27: 0.1939163498 | Y27: Norfolk and Waveney Integrated Care System (I24) | Z27: 16120 | AA27: =ICS[[#This Row],[Total Bed Days (sum)]]/ICS[[#This Row],[Admissions (count)]] -> 6.296875 | AB27: 6298910.16 | AC27: 1840 | AD27: 2560 | AE27: =ICS[[#This Row],[Admissions (count)]]/ICS[[#This Row],[Patient (count)]] -> 1.391304348 | AF27: 2460.51 | AG27: 0.1153119093 | AH27: 0.2173913043
B28: Avg. Bed Days | C28: =_xlfn.XLOOKUP(C23,Trust[Provider Trust],Trust[Avg. Bed Days]) -> 4.368635438 | F28: Admissions biologic patients | G28: =G27*G26 -> 267.104 | J28: Bed days | K28: =G34-C31 -> -549.12 | O28: DORSET COUNTY HOSPITAL NHS FOUNDATION TRUST | P28: 340 | Q28: 255 | R28: 1775 | S28: =Trust[[#This Row],[Total Bed days]]/Trust[[#This Row],[Admissions]] -> 5.220588235 | T28: 2311.751174 | U28: =Trust[[#This Row],[Admissions]]/Trust[[#This Row],[Patients]] -> 1.333333333 | V28: 0.06329113924 | W28: 0.1139240506 | Y28: North Central London Integrated Care System (I25) | Z28: 12165 | AA28: =ICS[[#This Row],[Total Bed Days (sum)]]/ICS[[#This Row],[Admissions (count)]] -> 6.629427793 | AB28: 6264232.11 | AC28: 1220 | AD28: 1835 | AE28: =ICS[[#This Row],[Admissions (count)]]/ICS[[#This Row],[Patient (count)]] -> 1.504098361 | AF28: 3612.59 | AG28: 0.088 | AH28: 0.192
B29: Avg. Cost per admission | C29: =_xlfn.XLOOKUP(C23,Trust[Provider Trust],Trust[Avg. Cost]) -> 2355.051883 | F29: Admissions rest of population | G29: =(C27-G26)*C30 -> 2062.2 | O29: DORSET HEALTHCARE UNIVERSITY NHS FOUNDATION TRUST | P29: 7 | Q29: 7 | R29: 7 | S29: =Trust[[#This Row],[Total Bed days]]/Trust[[#This Row],[Admissions]] -> 1 | T29: 4349.2 | U29: =Trust[[#This Row],[Admissions]]/Trust[[#This Row],[Patients]] -> 1 | W29: 0 | Y29: North East London Health and Care Partnership (I26) | Z29: 17095 | AA29: =ICS[[#This Row],[Total Bed Days (sum)]]/ICS[[#This Row],[Admissions (count)]] -> 5.844444444 | AB29: 9222573.64 | AC29: 1760 | AD29: 2925 | AE29: =ICS[[#This Row],[Admissions (count)]]/ICS[[#This Row],[Patient (count)]] -> 1.661931818 | AF29: 3155.17 | AG29: 0.1164596273 | AH29: 0.2034161491
B30: Admissions per patient | C30: =_xlfn.XLOOKUP(C23,Trust[Provider Trust],Trust[Average Admissions per Patient]) -> 1.594155844 | F30: Future Population Admissions | G30: =(G27*G26)+((C27-G26)*C30) -> 2329.304 | O30: EAST AND NORTH HERTFORDSHIRE NHS TRUST | P30: 910 | Q30: 530 | R30: 5120 | S30: =Trust[[#This Row],[Total Bed days]]/Trust[[#This Row],[Admissions]] -> 5.626373626 | T30: 2509.684708 | U30: =Trust[[#This Row],[Admissions]]/Trust[[#This Row],[Patients]] -> 1.716981132 | V30: 0.1016042781 | W30: 0.1818181818 | Y30: North East and North Cumbria Integrated Care System (I02) | Z30: 59265 | AA30: =ICS[[#This Row],[Total Bed Days (sum)]]/ICS[[#This Row],[Admissions (count)]] -> 4.997048904 | AB30: 26877211.76 | AC30: 7370 | AD30: 11860 | AE30: =ICS[[#This Row],[Admissions (count)]]/ICS[[#This Row],[Patient (count)]] -> 1.609226594 | AF30: 2392.7 | AG30: 0.1237070749 | AH30: 0.2279685561
B31: Total Bed Days | C31: =_xlfn.XLOOKUP(C23,Trust[Provider Trust],Trust[Total Bed days],"") -> 10725 | F31: Admission cost for biologic pop | G31: =(G26*G27)*Trust!$H$34 -> 928787.326 | O31: EAST CHESHIRE NHS TRUST | P31: 225 | Q31: 190 | R31: 1570 | S31: =Trust[[#This Row],[Total Bed days]]/Trust[[#This Row],[Admissions]] -> 6.977777778 | T31: 2743.088268 | U31: =Trust[[#This Row],[Admissions]]/Trust[[#This Row],[Patients]] -> 1.184210526 | V31: 0.08888888889 | W31: 0.1555555556 | Y31: North West London Integrated Care System (I27) | Z31: 17915 | AA31: =ICS[[#This Row],[Total Bed Days (sum)]]/ICS[[#This Row],[Admissions (count)]] -> 5.404223228 | AB31: 9247293.94 | AC31: 1875 | AD31: 3315 | AE31: =ICS[[#This Row],[Admissions (count)]]/ICS[[#This Row],[Patient (count)]] -> 1.768 | AF31: 2797.12 | AG31: 0.122681883 | AH31: 0.2282453638
B32: Patients eligible for bioloigcs | C32: =C27*Trust!H40 -> 616 | F32: Admission cost for rest of pop | G32: =((C27-G26)*C30)*Trust!$H$34 -> 7170784.502 | O32: EAST COAST COMMUNITY HEALTHCARE C.I.C | P32: 7 | Q32: 7 | R32: 40 | S32: =Trust[[#This Row],[Total Bed days]]/Trust[[#This Row],[Admissions]] -> 5.714285714 | T32: 4366 | U32: =Trust[[#This Row],[Admissions]]/Trust[[#This Row],[Patients]] -> 1 | V32: 1 | W32: 1 | Y32: Northamptonshire Integrated Care System (I37) | Z32: 13200 | AA32: =ICS[[#This Row],[Total Bed Days (sum)]]/ICS[[#This Row],[Admissions (count)]] -> 5.248508946 | AB32: 5809848.35 | AC32: 1530 | AD32: 2515 | AE32: =ICS[[#This Row],[Admissions (count)]]/ICS[[#This Row],[Patient (count)]] -> 1.64379085 | AF32: 2311.92 | AG32: 0.1423149905 | AH32: 0.2637571157
B33: Total Cost | C33: =Trust!N22*'Data (to be hidden)'!C27 -> 8536648.217 | F33: Future Total Cost | G33: =((G26*G27)*Trust!$H$34)+(((C27-G26)*C30)*Trust!$H$34) -> 8099571.828 | O33: EAST KENT HOSPITALS UNIVERSITY NHS FOUNDATION TRUST | P33: 1125 | Q33: 865 | R33: 7375 | S33: =Trust[[#This Row],[Total Bed days]]/Trust[[#This Row],[Admissions]] -> 6.555555556 | T33: 2881.228615 | U33: =Trust[[#This Row],[Admissions]]/Trust[[#This Row],[Patients]] -> 1.300578035 | V33: 0.04819277108 | W33: 0.07228915663 | Y33: Nottinghamshire Integrated Care System (I20) | Z33: 15725 | AA33: =ICS[[#This Row],[Total Bed Days (sum)]]/ICS[[#This Row],[Admissions (count)]] -> 4.794207317 | AB33: 8167502.05 | AC33: 1875 | AD33: 3280 | AE33: =ICS[[#This Row],[Admissions (count)]]/ICS[[#This Row],[Patient (count)]] -> 1.749333333 | AF33: 2493.13 | AG33: 0.1557863501 | AH33: 0.2715133531
B34: Readmission within 30 days | C34: =_xlfn.XLOOKUP(C23,Trust[Provider Trust],Trust[% Readmitted within 30 days]) -> 0.1113243762 | F34: Future Total Bed Days | G34: =G30*C28 -> 10175.88 | O34: EAST LANCASHIRE HOSPITALS NHS TRUST | P34: 815 | Q34: 600 | R34: 6205 | S34: =Trust[[#This Row],[Total Bed days]]/Trust[[#This Row],[Admissions]] -> 7.613496933 | T34: 2856.733169 | U34: =Trust[[#This Row],[Admissions]]/Trust[[#This Row],[Patients]] -> 1.358333333 | V34: 0.08823529412 | W34: 0.1691176471 | Y34: One Gloucestershire Integrated Care System (I11) | Z34: 6380 | AA34: =ICS[[#This Row],[Total Bed Days (sum)]]/ICS[[#This Row],[Admissions (count)]] -> 6.577319588 | AB34: 2507473.25 | AC34: 735 | AD34: 970 | AE34: =ICS[[#This Row],[Admissions (count)]]/ICS[[#This Row],[Patient (count)]] -> 1.319727891 | AF34: 2985.09 | AG34: 0.07 | AH34: 0.145
B35: Readmission within 90 days | C35: =_xlfn.XLOOKUP(C23,Trust[Provider Trust],Trust[% Readmitted within 90 days],) -> 0.2092130518 | O35: EAST SUFFOLK AND NORTH ESSEX NHS FOUNDATION TRUST | P35: 1620 | Q35: 1095 | R35: 8795 | S35: =Trust[[#This Row],[Total Bed days]]/Trust[[#This Row],[Admissions]] -> 5.429012346 | T35: 2339.605514 | U35: =Trust[[#This Row],[Admissions]]/Trust[[#This Row],[Patients]] -> 1.479452055 | V35: 0.08 | W35: 0.1714285714 | Y35: Shropshire and Telford and Wrekin Integrated Care System (I38) | Z35: 5970 | AA35: =ICS[[#This Row],[Total Bed Days (sum)]]/ICS[[#This Row],[Admissions (count)]] -> 4.853658537 | AB35: 2737192.75 | AC35: 845 | AD35: 1230 | AE35: =ICS[[#This Row],[Admissions (count)]]/ICS[[#This Row],[Patient (count)]] -> 1.455621302 | AF35: 2228.98 | AG35: 0.09677419355 | AH35: 0.1733870968
O36: EAST SUSSEX HEALTHCARE NHS TRUST | P36: 990 | Q36: 750 | R36: 5050 | S36: =Trust[[#This Row],[Total Bed days]]/Trust[[#This Row],[Admissions]] -> 5.101010101 | T36: 2261.367921 | U36: =Trust[[#This Row],[Admissions]]/Trust[[#This Row],[Patients]] -> 1.32 | V36: 0.05339805825 | W36: 0.1262135922 | Y36: Somerset Integrated Care System (I12) | Z36: 8435 | AA36: =ICS[[#This Row],[Total Bed Days (sum)]]/ICS[[#This Row],[Admissions (count)]] -> 6.775100402 | AB36: 3261325.17 | AC36: 850 | AD36: 1245 | AE36: =ICS[[#This Row],[Admissions (count)]]/ICS[[#This Row],[Patient (count)]] -> 1.464705882 | AF36: 2617.44 | AG36: 0.1031746032 | AH36: 0.2063492063
O37: EPSOM AND ST HELIER UNIVERSITY HOSPITALS NHS TRUST | P37: 545 | Q37: 370 | R37: 3705 | S37: =Trust[[#This Row],[Total Bed days]]/Trust[[#This Row],[Admissions]] -> 6.798165138 | T37: 3573.663883 | U37: =Trust[[#This Row],[Admissions]]/Trust[[#This Row],[Patients]] -> 1.472972973 | V37: 0.1150442478 | W37: 0.203539823 | Y37: South East London Integrated Care System (I28) | Z37: 17185 | AA37: =ICS[[#This Row],[Total Bed Days (sum)]]/ICS[[#This Row],[Admissions (count)]] -> 5.728333333 | AB37: 9013872.76 | AC37: 1790 | AD37: 3000 | AE37: =ICS[[#This Row],[Admissions (count)]]/ICS[[#This Row],[Patient (count)]] -> 1.675977654 | AF37: 3022.76 | AG37: 0.1078947368 | AH37: 0.1881578947
O38: FRIMLEY HEALTH NHS FOUNDATION TRUST | P38: 1070 | Q38: 720 | R38: 7285 | S38: =Trust[[#This Row],[Total Bed days]]/Trust[[#This Row],[Admissions]] -> 6.808411215 | T38: 2987.995602 | U38: =Trust[[#This Row],[Admissions]]/Trust[[#This Row],[Patients]] -> 1.486111111 | V38: 0.0814479638 | W38: 0.1674208145 | Y38: South West London Integrated Care System (I29) | Z38: 13310 | AA38: =ICS[[#This Row],[Total Bed Days (sum)]]/ICS[[#This Row],[Admissions (count)]] -> 7.35359116 | AB38: 6041426.8 | AC38: 1185 | AD38: 1810 | AE38: =ICS[[#This Row],[Admissions (count)]]/ICS[[#This Row],[Patient (count)]] -> 1.52742616 | AF38: 3343.35 | AG38: 0.09973045822 | AH38: 0.1913746631
O39: GATESHEAD HEALTH NHS FOUNDATION TRUST | P39: 1025 | Q39: 580 | R39: 5210 | S39: =Trust[[#This Row],[Total Bed days]]/Trust[[#This Row],[Admissions]] -> 5.082926829 | T39: 2074.884114 | U39: =Trust[[#This Row],[Admissions]]/Trust[[#This Row],[Patients]] -> 1.767241379 | V39: 0.1553398058 | W39: 0.2766990291 | Y39: South Yorkshire Integrated Care System (I03) | Z39: 25925 | AA39: =ICS[[#This Row],[Total Bed Days (sum)]]/ICS[[#This Row],[Admissions (count)]] -> 5.038872692 | AB39: 12432944.56 | AC39: 3465 | AD39: 5145 | AE39: =ICS[[#This Row],[Admissions (count)]]/ICS[[#This Row],[Patient (count)]] -> 1.484848485 | AF39: 2502.1 | AG39: 0.1220435194 | AH39: 0.2213812677
O40: GEORGE ELIOT HOSPITAL NHS TRUST | P40: 835 | Q40: 565 | R40: 4500 | S40: =Trust[[#This Row],[Total Bed days]]/Trust[[#This Row],[Admissions]] -> 5.389221557 | T40: 2251.370433 | U40: =Trust[[#This Row],[Admissions]]/Trust[[#This Row],[Patients]] -> 1.477876106 | V40: 0.09278350515 | W40: 0.1701030928 | Y40: Staffordshire and Stoke on Trent Integrated Care System (I39) | Z40: 15110 | AA40: =ICS[[#This Row],[Total Bed Days (sum)]]/ICS[[#This Row],[Admissions (count)]] -> 5.078991597 | AB40: 6819923.7 | AC40: 1795 | AD40: 2975 | AE40: =ICS[[#This Row],[Admissions (count)]]/ICS[[#This Row],[Patient (count)]] -> 1.657381616 | AF40: 2305.59 | AG40: 0.1276252019 | AH40: 0.2294022617
O41: GLOUCESTERSHIRE HEALTH AND CARE NHS FOUNDATION TRUST | P41: 20 | Q41: 20 | R41: 470 | S41: =Trust[[#This Row],[Total Bed days]]/Trust[[#This Row],[Admissions]] -> 23.5 | T41: 5432.007238 | U41: =Trust[[#This Row],[Admissions]]/Trust[[#This Row],[Patients]] -> 1 | V41: 0.35 | W41: 0.35 | Y41: Suffolk and North East Essex Integrated Care System (I23) | Z41: 12890 | AA41: =ICS[[#This Row],[Total Bed Days (sum)]]/ICS[[#This Row],[Admissions (count)]] -> 5.304526749 | AB41: 5837171.97 | AC41: 1610 | AD41: 2430 | AE41: =ICS[[#This Row],[Admissions (count)]]/ICS[[#This Row],[Patient (count)]] -> 1.50931677 | AF41: 2471.28 | AG41: 0.08571428571 | AH41: 0.1755102041
O42: GLOUCESTERSHIRE HOSPITALS NHS FOUNDATION TRUST | P42: 875 | Q42: 680 | R42: 5910 | S42: =Trust[[#This Row],[Total Bed days]]/Trust[[#This Row],[Admissions]] -> 6.754285714 | T42: 2928.421964 | U42: =Trust[[#This Row],[Admissions]]/Trust[[#This Row],[Patients]] -> 1.286764706 | V42: 0.07142857143 | W42: 0.137755102 | Y42: Surrey Heartlands Health and Care Partnership (I16) | Z42: 8730 | AA42: =ICS[[#This Row],[Total Bed Days (sum)]]/ICS[[#This Row],[Admissions (count)]] -> 5.743421053 | AB42: 4422219.58 | AC42: 1045 | AD42: 1520 | AE42: =ICS[[#This Row],[Admissions (count)]]/ICS[[#This Row],[Patient (count)]] -> 1.454545455 | AF42: 2909.35 | AG42: 0.08463949843 | AH42: 0.1473354232
O43: GREAT ORMOND STREET HOSPITAL FOR CHILDREN NHS FOUNDATION TRUST | P43: 7 | Q43: 7 | R43: 105 | S43: =Trust[[#This Row],[Total Bed days]]/Trust[[#This Row],[Admissions]] -> 15 | T43: 39142.617 | U43: =Trust[[#This Row],[Admissions]]/Trust[[#This Row],[Patients]] -> 1 | W43: 0 | Y43: Sussex Integrated Care System (I17) | Z43: 13880 | AA43: =ICS[[#This Row],[Total Bed Days (sum)]]/ICS[[#This Row],[Admissions (count)]] -> 5.019891501 | AB43: 6397627.57 | AC43: 1930 | AD43: 2765 | AE43: =ICS[[#This Row],[Admissions (count)]]/ICS[[#This Row],[Patient (count)]] -> 1.432642487 | AF43: 2337.46 | AG43: 0.07614213198 | AH43: 0.1438240271
O44: GREAT WESTERN HOSPITALS NHS FOUNDATION TRUST | P44: 715 | Q44: 515 | R44: 4195 | S44: =Trust[[#This Row],[Total Bed days]]/Trust[[#This Row],[Admissions]] -> 5.867132867 | T44: 2278.445061 | U44: =Trust[[#This Row],[Admissions]]/Trust[[#This Row],[Patients]] -> 1.388349515 | V44: 0.1296296296 | W44: 0.2037037037 | Y44: The Black Country Integrated Care System (I40) | Z44: 13665 | AA44: =ICS[[#This Row],[Total Bed Days (sum)]]/ICS[[#This Row],[Admissions (count)]] -> 4.001464129 | AB44: 6285091.6 | AC44: 2370 | AD44: 3415 | AE44: =ICS[[#This Row],[Admissions (count)]]/ICS[[#This Row],[Patient (count)]] -> 1.44092827 | AF44: 1976.44 | AG44: 0.1017881706 | AH44: 0.1829436039
O45: GUY'S AND ST THOMAS' NHS FOUNDATION TRUST | P45: 310 | Q45: 220 | R45: 3220 | S45: =Trust[[#This Row],[Total Bed days]]/Trust[[#This Row],[Admissions]] -> 10.38709677 | T45: 3579.079853 | U45: =Trust[[#This Row],[Admissions]]/Trust[[#This Row],[Patients]] -> 1.409090909 | V45: 0.08960573477 | W45: 0.1362007168 | Y45: West Yorkshire Health and Care Partnership (I04) | Z45: 32265 | AA45: =ICS[[#This Row],[Total Bed Days (sum)]]/ICS[[#This Row],[Admissions (count)]] -> 5.42724979 | AB45: 14422516.09 | AC45: 3585 | AD45: 5945 | AE45: =ICS[[#This Row],[Admissions (count)]]/ICS[[#This Row],[Patient (count)]] -> 1.658298466 | AF45: 2430.9 | AG45: 0.1338842975 | AH45: 0.2520661157
O46: HAMPSHIRE HOSPITALS NHS FOUNDATION TRUST | P46: 985 | Q46: 645 | R46: 6445 | S46: =Trust[[#This Row],[Total Bed days]]/Trust[[#This Row],[Admissions]] -> 6.543147208 | T46: 2638.650631 | U46: =Trust[[#This Row],[Admissions]]/Trust[[#This Row],[Patients]] -> 1.527131783 | V46: 0.07798165138 | W46: 0.1513761468
O47: HARROGATE AND DISTRICT NHS FOUNDATION TRUST | P47: 250 | Q47: 160 | R47: 1295 | S47: =Trust[[#This Row],[Total Bed days]]/Trust[[#This Row],[Admissions]] -> 5.18 | T47: 2185.254548 | U47: =Trust[[#This Row],[Admissions]]/Trust[[#This Row],[Patients]] -> 1.5625 | V47: 0.125 | W47: 0.2142857143
O48: HEREFORDSHIRE AND WORCESTERSHIRE HEALTH AND CARE NHS TRUST | P48: 30 | Q48: 30 | R48: 715 | S48: =Trust[[#This Row],[Total Bed days]]/Trust[[#This Row],[Admissions]] -> 23.83333333 | T48: 6119.924633 | U48: =Trust[[#This Row],[Admissions]]/Trust[[#This Row],[Patients]] -> 1 | V48: 0.2333333333 | W48: 0.2333333333
O49: HOMERTON HEALTHCARE NHS FOUNDATION TRUST | P49: 325 | Q49: 210 | R49: 1630 | S49: =Trust[[#This Row],[Total Bed days]]/Trust[[#This Row],[Admissions]] -> 5.015384615 | T49: 2594.833936 | U49: =Trust[[#This Row],[Admissions]]/Trust[[#This Row],[Patients]] -> 1.547619048 | V49: 0.08571428571 | W49: 0.1857142857
O50: HULL UNIVERSITY TEACHING HOSPITALS NHS TRUST | P50: 1495 | Q50: 1040 | R50: 7200 | S50: =Trust[[#This Row],[Total Bed days]]/Trust[[#This Row],[Admissions]] -> 4.816053512 | T50: 2305.246457 | U50: =Trust[[#This Row],[Admissions]]/Trust[[#This Row],[Patients]] -> 1.4375 | V50: 0.128440367 | W50: 0.2232415902
O51: IMPERIAL COLLEGE HEALTHCARE NHS TRUST | P51: 605 | Q51: 355 | R51: 2660 | S51: =Trust[[#This Row],[Total Bed days]]/Trust[[#This Row],[Admissions]] -> 4.396694215 | T51: 3222.032543 | U51: =Trust[[#This Row],[Admissions]]/Trust[[#This Row],[Patients]] -> 1.704225352 | V51: 0.1290322581 | W51: 0.2338709677
O52: ISLE OF WIGHT NHS TRUST | P52: 305 | Q52: 240 | R52: 1840 | S52: =Trust[[#This Row],[Total Bed days]]/Trust[[#This Row],[Admissions]] -> 6.032786885 | T52: 2626.138441 | U52: =Trust[[#This Row],[Admissions]]/Trust[[#This Row],[Patients]] -> 1.270833333 | V52: 0.1935483871 | W52: 0.3064516129
O53: JAMES PAGET UNIVERSITY HOSPITALS NHS FOUNDATION TRUST | P53: 650 | Q53: 480 | R53: 4610 | S53: =Trust[[#This Row],[Total Bed days]]/Trust[[#This Row],[Admissions]] -> 7.092307692 | T53: 2699.303377 | U53: =Trust[[#This Row],[Admissions]]/Trust[[#This Row],[Patients]] -> 1.354166667 | V53: 0.1088435374 | W53: 0.2108843537
O54: KETTERING GENERAL HOSPITAL NHS FOUNDATION TRUST | P54: 1180 | Q54: 720 | R54: 6375 | S54: =Trust[[#This Row],[Total Bed days]]/Trust[[#This Row],[Admissions]] -> 5.402542373 | T54: 2229.5556 | U54: =Trust[[#This Row],[Admissions]]/Trust[[#This Row],[Patients]] -> 1.638888889 | V54: 0.1111111111 | W54: 0.21875
O55: KING'S COLLEGE HOSPITAL NHS FOUNDATION TRUST | P55: 605 | Q55: 360 | R55: 6985 | S55: =Trust[[#This Row],[Total Bed days]]/Trust[[#This Row],[Admissions]] -> 11.54545455 | T55: 3196.108938 | U55: =Trust[[#This Row],[Admissions]]/Trust[[#This Row],[Patients]] -> 1.680555556 | V55: 0.106557377 | W55: 0.1885245902
O56: KINGSTON HOSPITAL NHS FOUNDATION TRUST | P56: 375 | Q56: 260 | R56: 2515 | S56: =Trust[[#This Row],[Total Bed days]]/Trust[[#This Row],[Admissions]] -> 6.706666667 | T56: 3091.170427 | U56: =Trust[[#This Row],[Admissions]]/Trust[[#This Row],[Patients]] -> 1.442307692 | V56: 0.08 | W56: 0.2
O57: LANCASHIRE TEACHING HOSPITALS NHS FOUNDATION TRUST | P57: 1165 | Q57: 810 | R57: 6285 | S57: =Trust[[#This Row],[Total Bed days]]/Trust[[#This Row],[Admissions]] -> 5.394849785 | T57: 2644.680692 | U57: =Trust[[#This Row],[Admissions]]/Trust[[#This Row],[Patients]] -> 1.438271605 | V57: 0.0622406639 | W57: 0.132780083
O58: LEEDS TEACHING HOSPITALS NHS TRUST | P58: 1390 | Q58: 905 | R58: 8805 | S58: =Trust[[#This Row],[Total Bed days]]/Trust[[#This Row],[Admissions]] -> 6.334532374 | T58: 2594.637778 | U58: =Trust[[#This Row],[Admissions]]/Trust[[#This Row],[Patients]] -> 1.535911602 | V58: 0.1404109589 | W58: 0.2602739726
O59: LEICESTERSHIRE PARTNERSHIP NHS TRUST | P59: 40 | Q59: 35 | R59: 660 | S59: =Trust[[#This Row],[Total Bed days]]/Trust[[#This Row],[Admissions]] -> 16.5 | T59: 0 | U59: =Trust[[#This Row],[Admissions]]/Trust[[#This Row],[Patients]] -> 1.142857143 | V59: 0.175 | W59: 0.175
O60: LEWISHAM AND GREENWICH NHS TRUST | P60: 1140 | Q60: 715 | R60: 6980 | S60: =Trust[[#This Row],[Total Bed days]]/Trust[[#This Row],[Admissions]] -> 6.122807018 | T60: 3111.159833 | U60: =Trust[[#This Row],[Admissions]]/Trust[[#This Row],[Patients]] -> 1.594405594 | V60: 0.1308016878 | W60: 0.2447257384
O61: LINCOLNSHIRE COMMUNITY HEALTH SERVICES NHS TRUST | P61: 10 | Q61: 10 | R61: 115 | S61: =Trust[[#This Row],[Total Bed days]]/Trust[[#This Row],[Admissions]] -> 11.5 | T61: 3957.6925 | U61: =Trust[[#This Row],[Admissions]]/Trust[[#This Row],[Patients]] -> 1 | V61: 0.4666666667 | W61: 0.4666666667
O62: LIVERPOOL HEART AND CHEST HOSPITAL NHS FOUNDATION TRUST | P62: 7 | Q62: 7 | R62: 25 | S62: =Trust[[#This Row],[Total Bed days]]/Trust[[#This Row],[Admissions]] -> 3.571428571 | T62: 5219.3562 | U62: =Trust[[#This Row],[Admissions]]/Trust[[#This Row],[Patients]] -> 1 | V62: 0.1555555556 | W62: 0.1555555556
O63: LIVERPOOL UNIVERSITY HOSPITALS NHS FOUNDATION TRUST | P63: 2745 | Q63: 1735 | R63: 14700 | S63: =Trust[[#This Row],[Total Bed days]]/Trust[[#This Row],[Admissions]] -> 5.355191257 | T63: 2480.930017 | U63: =Trust[[#This Row],[Admissions]]/Trust[[#This Row],[Patients]] -> 1.582132565 | V63: 0.08944543828 | W63: 0.1842576029
O64: LONDON NORTH WEST UNIVERSITY HEALTHCARE NHS TRUST | P64: 1225 | Q64: 680 | R64: 6700 | S64: =Trust[[#This Row],[Total Bed days]]/Trust[[#This Row],[Admissions]] -> 5.469387755 | T64: 2638.815143 | U64: =Trust[[#This Row],[Admissions]]/Trust[[#This Row],[Patients]] -> 1.801470588 | V64: 0.1196911197 | W64: 0.2432432432
O65: MAIDSTONE AND TUNBRIDGE WELLS NHS TRUST | P65: 780 | Q65: 585 | R65: 4315 | S65: =Trust[[#This Row],[Total Bed days]]/Trust[[#This Row],[Admissions]] -> 5.532051282 | T65: 2132.243267 | U65: =Trust[[#This Row],[Admissions]]/Trust[[#This Row],[Patients]] -> 1.333333333 | V65: 0.09039548023 | W65: 0.1525423729
O66: MANCHESTER UNIVERSITY NHS FOUNDATION TRUST | P66: 2330 | Q66: 1410 | R66: 16895 | S66: =Trust[[#This Row],[Total Bed days]]/Trust[[#This Row],[Admissions]] -> 7.251072961 | T66: 3033.503346 | U66: =Trust[[#This Row],[Admissions]]/Trust[[#This Row],[Patients]] -> 1.65248227 | V66: 0.09724770642 | W66: 0.1871559633
O67: MEDWAY NHS FOUNDATION TRUST | P67: 820 | Q67: 620 | R67: 6810 | S67: =Trust[[#This Row],[Total Bed days]]/Trust[[#This Row],[Admissions]] -> 8.304878049 | T67: 3276.733999 | U67: =Trust[[#This Row],[Admissions]]/Trust[[#This Row],[Patients]] -> 1.322580645 | V67: 0.07303370787 | W67: 0.1516853933
O68: MERSEY AND WEST LANCASHIRE TEACHING HOSPITALS NHS TRUST | P68: 1555 | Q68: 1065 | R68: 7810 | S68: =Trust[[#This Row],[Total Bed days]]/Trust[[#This Row],[Admissions]] -> 5.022508039 | T68: 2312.293544 | U68: =Trust[[#This Row],[Admissions]]/Trust[[#This Row],[Patients]] -> 1.460093897 | V68: 0.08359133127 | W68: 0.1795665635
O69: MID AND SOUTH ESSEX NHS FOUNDATION TRUST | P69: 2410 | Q69: 1615 | R69: 14945 | S69: =Trust[[#This Row],[Total Bed days]]/Trust[[#This Row],[Admissions]] -> 6.201244813 | T69: 2690.198426 | U69: =Trust[[#This Row],[Admissions]]/Trust[[#This Row],[Patients]] -> 1.492260062 | V69: 0.0933572711 | W69: 0.1849192101
O70: MID CHESHIRE HOSPITALS NHS FOUNDATION TRUST | P70: 615 | Q70: 455 | R70: 2515 | S70: =Trust[[#This Row],[Total Bed days]]/Trust[[#This Row],[Admissions]] -> 4.089430894 | T70: 2093.108234 | U70: =Trust[[#This Row],[Admissions]]/Trust[[#This Row],[Patients]] -> 1.351648352 | V70: 0.1395348837 | W70: 0.2325581395
O71: MID YORKSHIRE TEACHING NHS TRUST | P71: 1775 | Q71: 965 | R71: 10540 | S71: =Trust[[#This Row],[Total Bed days]]/Trust[[#This Row],[Admissions]] -> 5.938028169 | T71: 2678.998021 | U71: =Trust[[#This Row],[Admissions]]/Trust[[#This Row],[Patients]] -> 1.839378238 | V71: 0.1649484536 | W71: 0.3041237113
O72: MIDLANDS PARTNERSHIP NHS FOUNDATION TRUST | P72: 195 | Q72: 160 | R72: 4385 | S72: =Trust[[#This Row],[Total Bed days]]/Trust[[#This Row],[Admissions]] -> 22.48717949 | T72: 6836.190147 | U72: =Trust[[#This Row],[Admissions]]/Trust[[#This Row],[Patients]] -> 1.21875 | V72: 0.2142857143 | W72: 0.3367346939
O73: MILTON KEYNES UNIVERSITY HOSPITAL NHS FOUNDATION TRUST | P73: 715 | Q73: 440 | R73: 5490 | S73: =Trust[[#This Row],[Total Bed days]]/Trust[[#This Row],[Admissions]] -> 7.678321678 | T73: 3103.832676 | U73: =Trust[[#This Row],[Admissions]]/Trust[[#This Row],[Patients]] -> 1.625 | V73: 0.08904109589 | W73: 0.1849315068
O74: NORFOLK AND NORWICH UNIVERSITY HOSPITALS NHS FOUNDATION TRUST | P74: 930 | Q74: 615 | R74: 4875 | S74: =Trust[[#This Row],[Total Bed days]]/Trust[[#This Row],[Admissions]] -> 5.241935484 | T74: 2208.812277 | U74: =Trust[[#This Row],[Admissions]]/Trust[[#This Row],[Patients]] -> 1.512195122 | V74: 0.1347150259 | W74: 0.2435233161
O75: NORFOLK COMMUNITY HEALTH AND CARE NHS TRUST | P75: 25 | Q75: 25 | R75: 665 | S75: =Trust[[#This Row],[Total Bed days]]/Trust[[#This Row],[Admissions]] -> 26.6 | T75: 5114.67352 | U75: =Trust[[#This Row],[Admissions]]/Trust[[#This Row],[Patients]] -> 1
O76: NORTH BRISTOL NHS TRUST | P76: 1245 | Q76: 850 | R76: 5445 | S76: =Trust[[#This Row],[Total Bed days]]/Trust[[#This Row],[Admissions]] -> 4.373493976 | T76: 1913.099363 | U76: =Trust[[#This Row],[Admissions]]/Trust[[#This Row],[Patients]] -> 1.464705882 | V76: 0.06225680934 | W76: 0.1439688716
O77: NORTH CUMBRIA INTEGRATED CARE NHS FOUNDATION TRUST | P77: 1105 | Q77: 655 | R77: 7720 | S77: =Trust[[#This Row],[Total Bed days]]/Trust[[#This Row],[Admissions]] -> 6.986425339 | T77: 2672.121927 | U77: =Trust[[#This Row],[Admissions]]/Trust[[#This Row],[Patients]] -> 1.687022901 | V77: 0.130044843 | W77: 0.2331838565
O78: NORTH MIDDLESEX UNIVERSITY HOSPITAL NHS TRUST | P78: 540 | Q78: 370 | R78: 4925 | S78: =Trust[[#This Row],[Total Bed days]]/Trust[[#This Row],[Admissions]] -> 9.12037037 | T78: 3771.964091 | U78: =Trust[[#This Row],[Admissions]]/Trust[[#This Row],[Patients]] -> 1.459459459 | V78: 0.08181818182 | W78: 0.1727272727
O79: NORTH TEES AND HARTLEPOOL NHS FOUNDATION TRUST | P79: 1490 | Q79: 935 | R79: 5745 | S79: =Trust[[#This Row],[Total Bed days]]/Trust[[#This Row],[Admissions]] -> 3.855704698 | T79: 2310.233123 | U79: =Trust[[#This Row],[Admissions]]/Trust[[#This Row],[Patients]] -> 1.593582888 | V79: 0.1891025641 | W79: 0.3269230769
O80: NORTH WEST ANGLIA NHS FOUNDATION TRUST | P80: 1200 | Q80: 765 | R80: 7830 | S80: =Trust[[#This Row],[Total Bed days]]/Trust[[#This Row],[Admissions]] -> 6.525 | T80: 2475.336632 | U80: =Trust[[#This Row],[Admissions]]/Trust[[#This Row],[Patients]] -> 1.568627451 | V80: 0.07575757576 | W80: 0.1553030303
O81: NORTHAMPTON GENERAL HOSPITAL NHS TRUST | P81: 1100 | Q81: 695 | R81: 6825 | S81: =Trust[[#This Row],[Total Bed days]]/Trust[[#This Row],[Admissions]] -> 6.204545455 | T81: 2358.100875 | U81: =Trust[[#This Row],[Admissions]]/Trust[[#This Row],[Patients]] -> 1.582733813 | V81: 0.179916318 | W81: 0.3179916318
O82: NORTHERN CARE ALLIANCE NHS FOUNDATION TRUST | P82: 2365 | Q82: 1700 | R82: 8780 | S82: =Trust[[#This Row],[Total Bed days]]/Trust[[#This Row],[Admissions]] -> 3.712473573 | T82: 2069.634336 | U82: =Trust[[#This Row],[Admissions]]/Trust[[#This Row],[Patients]] -> 1.391176471 | V82: 0.1260330579 | W82: 0.229338843
O83: NORTHERN LINCOLNSHIRE AND GOOLE NHS FOUNDATION TRUST | P83: 1365 | Q83: 995 | R83: 8110 | S83: =Trust[[#This Row],[Total Bed days]]/Trust[[#This Row],[Admissions]] -> 5.941391941 | T83: 2322.73807 | U83: =Trust[[#This Row],[Admissions]]/Trust[[#This Row],[Patients]] -> 1.371859296 | V83: 0.09782608696 | W83: 0.1920289855
O84: NORTHUMBRIA HEALTHCARE NHS FOUNDATION TRUST | P84: 1275 | Q84: 970 | R84: 5110 | S84: =Trust[[#This Row],[Total Bed days]]/Trust[[#This Row],[Admissions]] -> 4.007843137 | T84: 2579.021976 | U84: =Trust[[#This Row],[Admissions]]/Trust[[#This Row],[Patients]] -> 1.31443299 | V84: 0.1083916084 | W84: 0.1958041958
O85: NOTTINGHAM UNIVERSITY HOSPITALS NHS TRUST | P85: 1985 | Q85: 1000 | R85: 10690 | S85: =Trust[[#This Row],[Total Bed days]]/Trust[[#This Row],[Admissions]] -> 5.385390428 | T85: 2229.747742 | U85: =Trust[[#This Row],[Admissions]]/Trust[[#This Row],[Patients]] -> 1.985 | V85: 0.1887201735 | W85: 0.31670282
O86: OXFORD UNIVERSITY HOSPITALS NHS FOUNDATION TRUST | P86: 1360 | Q86: 925 | R86: 5605 | S86: =Trust[[#This Row],[Total Bed days]]/Trust[[#This Row],[Admissions]] -> 4.121323529 | T86: 2150.816543 | U86: =Trust[[#This Row],[Admissions]]/Trust[[#This Row],[Patients]] -> 1.47027027 | V86: 0.128113879 | W86: 0.2099644128
O87: PORTSMOUTH HOSPITALS UNIVERSITY NATIONAL HEALTH SERVICE TRUST | P87: 1380 | Q87: 850 | R87: 8230 | S87: =Trust[[#This Row],[Total Bed days]]/Trust[[#This Row],[Admissions]] -> 5.963768116 | T87: 2527.183919 | U87: =Trust[[#This Row],[Admissions]]/Trust[[#This Row],[Patients]] -> 1.623529412 | V87: 0.1573770492 | W87: 0.2819672131
O88: ROYAL BERKSHIRE NHS FOUNDATION TRUST | P88: 705 | Q88: 410 | R88: 3330 | S88: =Trust[[#This Row],[Total Bed days]]/Trust[[#This Row],[Admissions]] -> 4.723404255 | T88: 2407.207732 | U88: =Trust[[#This Row],[Admissions]]/Trust[[#This Row],[Patients]] -> 1.719512195 | V88: 0.08391608392 | W88: 0.1538461538
O89: ROYAL CORNWALL HOSPITALS NHS TRUST | P89: 885 | Q89: 545 | R89: 3520 | S89: =Trust[[#This Row],[Total Bed days]]/Trust[[#This Row],[Admissions]] -> 3.97740113 | T89: 2005.764442 | U89: =Trust[[#This Row],[Admissions]]/Trust[[#This Row],[Patients]] -> 1.623853211 | V89: 0.07692307692 | W89: 0.1428571429
O90: ROYAL DEVON UNIVERSITY HEALTHCARE NHS FOUNDATION TRUST | P90: 1155 | Q90: 725 | R90: 6260 | S90: =Trust[[#This Row],[Total Bed days]]/Trust[[#This Row],[Admissions]] -> 5.41991342 | T90: 2341.255181 | U90: =Trust[[#This Row],[Admissions]]/Trust[[#This Row],[Patients]] -> 1.593103448 | V90: 0.08745247148 | W90: 0.1901140684
O91: ROYAL FREE LONDON NHS FOUNDATION TRUST | P91: 715 | Q91: 475 | R91: 3905 | S91: =Trust[[#This Row],[Total Bed days]]/Trust[[#This Row],[Admissions]] -> 5.461538462 | T91: 3651.28254 | U91: =Trust[[#This Row],[Admissions]]/Trust[[#This Row],[Patients]] -> 1.505263158 | V91: 0.0974025974 | W91: 0.2142857143
O92: ROYAL PAPWORTH HOSPITAL NHS FOUNDATION TRUST | P92: 95 | Q92: 95 | R92: 1140 | S92: =Trust[[#This Row],[Total Bed days]]/Trust[[#This Row],[Admissions]] -> 12 | T92: 5043.286049 | U92: =Trust[[#This Row],[Admissions]]/Trust[[#This Row],[Patients]] -> 1 | V92: 0.01386138614 | W92: 0.01386138614
O93: ROYAL SURREY COUNTY HOSPITAL NHS FOUNDATION TRUST | P93: 345 | Q93: 260 | R93: 2175 | S93: =Trust[[#This Row],[Total Bed days]]/Trust[[#This Row],[Admissions]] -> 6.304347826 | T93: 2948.832 | U93: =Trust[[#This Row],[Admissions]]/Trust[[#This Row],[Patients]] -> 1.326923077 | V93: 0.06944444444 | W93: 0.125
O94: ROYAL UNITED HOSPITALS BATH NHS FOUNDATION TRUST | P94: 600 | Q94: 415 | R94: 2515 | S94: =Trust[[#This Row],[Total Bed days]]/Trust[[#This Row],[Admissions]] -> 4.191666667 | T94: 2140.800473 | U94: =Trust[[#This Row],[Admissions]]/Trust[[#This Row],[Patients]] -> 1.445783133 | V94: 0.08527131783 | W94: 0.1860465116
O95: SALISBURY NHS FOUNDATION TRUST | P95: 380 | Q95: 300 | R95: 3035 | S95: =Trust[[#This Row],[Total Bed days]]/Trust[[#This Row],[Admissions]] -> 7.986842105 | T95: 2515.126183 | U95: =Trust[[#This Row],[Admissions]]/Trust[[#This Row],[Patients]] -> 1.266666667 | V95: 0.05617977528 | W95: 0.1011235955
O96: SANDWELL AND WEST BIRMINGHAM HOSPITALS NHS TRUST | P96: 1015 | Q96: 665 | R96: 4490 | S96: =Trust[[#This Row],[Total Bed days]]/Trust[[#This Row],[Admissions]] -> 4.42364532 | T96: 2410.317152 | U96: =Trust[[#This Row],[Admissions]]/Trust[[#This Row],[Patients]] -> 1.526315789 | V96: 0.1274509804 | W96: 0.2058823529
O97: SHEFFIELD CHILDREN'S NHS FOUNDATION TRUST | P97: 7 | Q97: 7 | R97: 60 | S97: =Trust[[#This Row],[Total Bed days]]/Trust[[#This Row],[Admissions]] -> 8.571428571 | T97: 4759.864286 | U97: =Trust[[#This Row],[Admissions]]/Trust[[#This Row],[Patients]] -> 1 | V97: 0 | W97: 0.14
O98: SHEFFIELD TEACHING HOSPITALS NHS FOUNDATION TRUST | P98: 1445 | Q98: 990 | R98: 9445 | S98: =Trust[[#This Row],[Total Bed days]]/Trust[[#This Row],[Admissions]] -> 6.53633218 | T98: 2528.579847 | U98: =Trust[[#This Row],[Admissions]]/Trust[[#This Row],[Patients]] -> 1.45959596 | V98: 0.1609907121 | W98: 0.2879256966
O99: SHERWOOD FOREST HOSPITALS NHS FOUNDATION TRUST | P99: 1040 | Q99: 775 | R99: 5035 | S99: =Trust[[#This Row],[Total Bed days]]/Trust[[#This Row],[Admissions]] -> 4.841346154 | T99: 2299.83518 | U99: =Trust[[#This Row],[Admissions]]/Trust[[#This Row],[Patients]] -> 1.341935484 | V99: 0.08530805687 | W99: 0.1706161137
O100: SHROPSHIRE COMMUNITY HEALTH NHS TRUST | P100: 7 | Q100: 7 | R100: 7 | S100: =Trust[[#This Row],[Total Bed days]]/Trust[[#This Row],[Admissions]] -> 1 | T100: 3154.966 | U100: =Trust[[#This Row],[Admissions]]/Trust[[#This Row],[Patients]] -> 1
O101: SOLENT NHS TRUST | P101: 10 | Q101: 10 | R101: 270 | S101: =Trust[[#This Row],[Total Bed days]]/Trust[[#This Row],[Admissions]] -> 27 | T101: 6281.6977 | U101: =Trust[[#This Row],[Admissions]]/Trust[[#This Row],[Patients]] -> 1 | V101: 0 | W101: 0.7
O102: SOMERSET NHS FOUNDATION TRUST | P102: 1115 | Q102: 765 | R102: 8435 | S102: =Trust[[#This Row],[Total Bed days]]/Trust[[#This Row],[Admissions]] -> 7.565022422 | T102: 2624.945057 | U102: =Trust[[#This Row],[Admissions]]/Trust[[#This Row],[Patients]] -> 1.45751634 | V102: 0.1031746032 | W102: 0.2063492063
O103: SOUTH TEES HOSPITALS NHS FOUNDATION TRUST | P103: 1255 | Q103: 885 | R103: 5525 | S103: =Trust[[#This Row],[Total Bed days]]/Trust[[#This Row],[Admissions]] -> 4.402390438 | T103: 2183.86117 | U103: =Trust[[#This Row],[Admissions]]/Trust[[#This Row],[Patients]] -> 1.418079096 | V103: 0.1134751773 | W103: 0.2234042553
O104: SOUTH TYNESIDE AND SUNDERLAND NHS FOUNDATION TRUST | P104: 1995 | Q104: 1170 | R104: 13430 | S104: =Trust[[#This Row],[Total Bed days]]/Trust[[#This Row],[Admissions]] -> 6.731829574 | T104: 2545.748125 | U104: =Trust[[#This Row],[Admissions]]/Trust[[#This Row],[Patients]] -> 1.705128205 | V104: 0.07675438596 | W104: 0.1513157895
O105: SOUTH WARWICKSHIRE UNIVERSITY NHS FOUNDATION TRUST | P105: 510 | Q105: 335 | R105: 2490 | S105: =Trust[[#This Row],[Total Bed days]]/Trust[[#This Row],[Admissions]] -> 4.882352941 | T105: 2321.37954 | U105: =Trust[[#This Row],[Admissions]]/Trust[[#This Row],[Patients]] -> 1.52238806 | V105: 0.07339449541 | W105: 0.1376146789
O106: SOUTHERN HEALTH NHS FOUNDATION TRUST | P106: 75 | Q106: 65 | T106: 2624.208349 | U106: =Trust[[#This Row],[Admissions]]/Trust[[#This Row],[Patients]] -> 1.153846154 | V106: 0.1333333333 | W106: 0.2
O107: SOUTHPORT AND ORMSKIRK HOSPITAL NHS TRUST | P107: 110 | Q107: 90 | R107: 600 | S107: =Trust[[#This Row],[Total Bed days]]/Trust[[#This Row],[Admissions]] -> 5.454545455 | T107: 2300.082881 | U107: =Trust[[#This Row],[Admissions]]/Trust[[#This Row],[Patients]] -> 1.222222222 | V107: 0.06363636364 | W107: 0.1363636364
O108: ST GEORGE'S UNIVERSITY HOSPITALS NHS FOUNDATION TRUST | P108: 355 | Q108: 235 | R108: 2430 | S108: =Trust[[#This Row],[Total Bed days]]/Trust[[#This Row],[Admissions]] -> 6.845070423 | T108: 3045.454472 | U108: =Trust[[#This Row],[Admissions]]/Trust[[#This Row],[Patients]] -> 1.510638298 | V108: 0.1466666667 | W108: 0.2133333333
O109: STOCKPORT NHS FOUNDATION TRUST | P109: 785 | Q109: 545 | R109: 4395 | S109: =Trust[[#This Row],[Total Bed days]]/Trust[[#This Row],[Admissions]] -> 5.598726115 | T109: 2837.112219 | U109: =Trust[[#This Row],[Admissions]]/Trust[[#This Row],[Patients]] -> 1.440366972 | V109: 0.1464968153 | W109: 0.2993630573
O110: SURREY AND SUSSEX HEALTHCARE NHS TRUST | P110: 645 | Q110: 430 | R110: 3555 | S110: =Trust[[#This Row],[Total Bed days]]/Trust[[#This Row],[Admissions]] -> 5.511627907 | T110: 2895.525819 | U110: =Trust[[#This Row],[Admissions]]/Trust[[#This Row],[Patients]] -> 1.5 | V110: 0.09230769231 | W110: 0.1461538462
O111: TAMESIDE AND GLOSSOP INTEGRATED CARE NHS FOUNDATION TRUST | P111: 1475 | Q111: 765 | R111: 5830 | S111: =Trust[[#This Row],[Total Bed days]]/Trust[[#This Row],[Admissions]] -> 3.952542373 | T111: 2353.712668 | U111: =Trust[[#This Row],[Admissions]]/Trust[[#This Row],[Patients]] -> 1.928104575 | V111: 0.146179402 | W111: 0.2358803987
O112: THE CHRISTIE NHS FOUNDATION TRUST | P112: 50 | Q112: 45 | R112: 175 | S112: =Trust[[#This Row],[Total Bed days]]/Trust[[#This Row],[Admissions]] -> 3.5 | T112: 1691.412979 | U112: =Trust[[#This Row],[Admissions]]/Trust[[#This Row],[Patients]] -> 1.111111111 | V112: 0.1818181818 | W112: 0.3636363636
O113: THE CLATTERBRIDGE CANCER CENTRE NHS FOUNDATION TRUST | P113: 10 | Q113: 10 | R113: 45 | S113: =Trust[[#This Row],[Total Bed days]]/Trust[[#This Row],[Admissions]] -> 4.5 | T113: 2942.439091 | U113: =Trust[[#This Row],[Admissions]]/Trust[[#This Row],[Patients]] -> 1 | V113: 0 | W113: 0.7
O114: THE DUDLEY GROUP NHS FOUNDATION TRUST | P114: 1335 | Q114: 915 | R114: 5570 | S114: =Trust[[#This Row],[Total Bed days]]/Trust[[#This Row],[Admissions]] -> 4.172284644 | T114: 1746.633092 | U114: =Trust[[#This Row],[Admissions]]/Trust[[#This Row],[Patients]] -> 1.459016393 | V114: 0.1257668712 | W114: 0.1993865031
O115: THE HILLINGDON HOSPITALS NHS FOUNDATION TRUST | P115: 460 | Q115: 315 | R115: 4025 | S115: =Trust[[#This Row],[Total Bed days]]/Trust[[#This Row],[Admissions]] -> 8.75 | T115: 2904.729198 | U115: =Trust[[#This Row],[Admissions]]/Trust[[#This Row],[Patients]] -> 1.46031746 | V115: 0.1 | W115: 0.1818181818
O116: THE NEWCASTLE UPON TYNE HOSPITALS NHS FOUNDATION TRUST | P116: 1305 | Q116: 790 | R116: 7135 | S116: =Trust[[#This Row],[Total Bed days]]/Trust[[#This Row],[Admissions]] -> 5.46743295 | T116: 2361.009937 | U116: =Trust[[#This Row],[Admissions]]/Trust[[#This Row],[Patients]] -> 1.651898734 | V116: 0.1241134752 | W116: 0.219858156
O117: THE PRINCESS ALEXANDRA HOSPITAL NHS TRUST | P117: 530 | Q117: 425 | R117: 3345 | S117: =Trust[[#This Row],[Total Bed days]]/Trust[[#This Row],[Admissions]] -> 6.311320755 | T117: 3001.342075 | U117: =Trust[[#This Row],[Admissions]]/Trust[[#This Row],[Patients]] -> 1.247058824 | V117: 0.06603773585 | W117: 0.141509434
O118: THE QUEEN ELIZABETH HOSPITAL, KING'S LYNN, NHS FOUNDATION TRUST | P118: 905 | Q118: 690 | R118: 5930 | S118: =Trust[[#This Row],[Total Bed days]]/Trust[[#This Row],[Admissions]] -> 6.552486188 | T118: 2481.131394 | U118: =Trust[[#This Row],[Admissions]]/Trust[[#This Row],[Patients]] -> 1.311594203 | V118: 0.1038251366 | W118: 0.2021857923
O119: THE ROBERT JONES AND AGNES HUNT ORTHOPAEDIC HOSPITAL NHS FOUNDATION TRUST | P119: 7 | Q119: 7 | R119: 45 | S119: =Trust[[#This Row],[Total Bed days]]/Trust[[#This Row],[Admissions]] -> 6.428571429 | T119: 10374.993 | U119: =Trust[[#This Row],[Admissions]]/Trust[[#This Row],[Patients]] -> 1
O120: THE ROTHERHAM NHS FOUNDATION TRUST | P120: 1040 | Q120: 715 | R120: 4270 | S120: =Trust[[#This Row],[Total Bed days]]/Trust[[#This Row],[Admissions]] -> 4.105769231 | T120: 2408.695006 | U120: =Trust[[#This Row],[Admissions]]/Trust[[#This Row],[Patients]] -> 1.454545455 | V120: 0.1153846154 | W120: 0.1971153846
O121: THE ROYAL MARSDEN NHS FOUNDATION TRUST | P121: 7 | Q121: 7 | R121: 20 | S121: =Trust[[#This Row],[Total Bed days]]/Trust[[#This Row],[Admissions]] -> 2.857142857 | T121: 718.05 | U121: =Trust[[#This Row],[Admissions]]/Trust[[#This Row],[Patients]] -> 1 | V121: 0.35 | W121: 0.35
O122: THE ROYAL WOLVERHAMPTON NHS TRUST | P122: 820 | Q122: 600 | R122: 3050 | S122: =Trust[[#This Row],[Total Bed days]]/Trust[[#This Row],[Admissions]] -> 3.719512195 | T122: 2656.171544 | U122: =Trust[[#This Row],[Admissions]]/Trust[[#This Row],[Patients]] -> 1.366666667 | V122: 0.06707317073 | W122: 0.1585365854
O123: THE SHREWSBURY AND TELFORD HOSPITAL NHS TRUST | P123: 1110 | Q123: 775 | R123: 5925 | S123: =Trust[[#This Row],[Total Bed days]]/Trust[[#This Row],[Admissions]] -> 5.337837838 | T123: 2256.227031 | U123: =Trust[[#This Row],[Admissions]]/Trust[[#This Row],[Patients]] -> 1.432258065 | V123: 0.0971659919 | W123: 0.1740890688
O124: THE WALTON CENTRE NHS FOUNDATION TRUST | P124: 7 | Q124: 7 | R124: 7 | S124: =Trust[[#This Row],[Total Bed days]]/Trust[[#This Row],[Admissions]] -> 1 | T124: 0 | U124: =Trust[[#This Row],[Admissions]]/Trust[[#This Row],[Patients]] -> 1 | W124: 1
O125: TORBAY AND SOUTH DEVON NHS FOUNDATION TRUST | P125: 770 | Q125: 485 | R125: 3130 | S125: =Trust[[#This Row],[Total Bed days]]/Trust[[#This Row],[Admissions]] -> 4.064935065 | T125: 1827.340702 | U125: =Trust[[#This Row],[Admissions]]/Trust[[#This Row],[Patients]] -> 1.587628866 | V125: 0.14375 | W125: 0.2375
O126: UNITED LINCOLNSHIRE HOSPITALS NHS TRUST | P126: 1570 | Q126: 1125 | R126: 9000 | S126: =Trust[[#This Row],[Total Bed days]]/Trust[[#This Row],[Admissions]] -> 5.732484076 | T126: 2756.714041 | U126: =Trust[[#This Row],[Admissions]]/Trust[[#This Row],[Patients]] -> 1.395555556 | V126: 0.09433962264 | W126: 0.1698113208
O127: UNIVERSITY COLLEGE LONDON HOSPITALS NHS FOUNDATION TRUST | P127: 240 | Q127: 190 | R127: 1370 | S127: =Trust[[#This Row],[Total Bed days]]/Trust[[#This Row],[Admissions]] -> 5.708333333 | T127: 3210.247506 | U127: =Trust[[#This Row],[Admissions]]/Trust[[#This Row],[Patients]] -> 1.263157895 | V127: 0.09259259259 | W127: 0.1851851852
O128: UNIVERSITY HOSPITAL SOUTHAMPTON NHS FOUNDATION TRUST | P128: 1405 | Q128: 780 | R128: 7115 | S128: =Trust[[#This Row],[Total Bed days]]/Trust[[#This Row],[Admissions]] -> 5.06405694 | T128: 2624.686359 | U128: =Trust[[#This Row],[Admissions]]/Trust[[#This Row],[Patients]] -> 1.801282051 | V128: 0.1396103896 | W128: 0.2532467532
O129: UNIVERSITY HOSPITALS BIRMINGHAM NHS FOUNDATION TRUST | P129: 3455 | Q129: 2510 | R129: 18435 | S129: =Trust[[#This Row],[Total Bed days]]/Trust[[#This Row],[Admissions]] -> 5.335745297 | T129: 2892.54127 | U129: =Trust[[#This Row],[Admissions]]/Trust[[#This Row],[Patients]] -> 1.376494024 | V129: 0.1026352288 | W129: 0.2108183079
O130: UNIVERSITY HOSPITALS BRISTOL AND WESTON NHS FOUNDATION TRUST | P130: 1410 | Q130: 1000 | R130: 9015 | S130: =Trust[[#This Row],[Total Bed days]]/Trust[[#This Row],[Admissions]] -> 6.393617021 | T130: 2498.013814 | U130: =Trust[[#This Row],[Admissions]]/Trust[[#This Row],[Patients]] -> 1.41 | V130: 0.0917721519 | W130: 0.1740506329
O131: UNIVERSITY HOSPITALS COVENTRY AND WARWICKSHIRE NHS TRUST | P131: 1005 | Q131: 715 | R131: 5725 | S131: =Trust[[#This Row],[Total Bed days]]/Trust[[#This Row],[Admissions]] -> 5.696517413 | T131: 2341.38706 | U131: =Trust[[#This Row],[Admissions]]/Trust[[#This Row],[Patients]] -> 1.405594406 | V131: 0.08457711443 | W131: 0.1791044776
O132: UNIVERSITY HOSPITALS DORSET NHS FOUNDATION TRUST | P132: 1720 | Q132: 1050 | R132: 8770 | S132: =Trust[[#This Row],[Total Bed days]]/Trust[[#This Row],[Admissions]] -> 5.098837209 | T132: 2286.053028 | U132: =Trust[[#This Row],[Admissions]]/Trust[[#This Row],[Patients]] -> 1.638095238 | V132: 0.106017192 | W132: 0.212034384
O133: UNIVERSITY HOSPITALS OF DERBY AND BURTON NHS FOUNDATION TRUST | P133: 1785 | Q133: 1220 | R133: 10595 | S133: =Trust[[#This Row],[Total Bed days]]/Trust[[#This Row],[Admissions]] -> 5.93557423 | T133: 2698.990885 | U133: =Trust[[#This Row],[Admissions]]/Trust[[#This Row],[Patients]] -> 1.463114754 | V133: 0.08378378378 | W133: 0.1756756757
O134: UNIVERSITY HOSPITALS OF LEICESTER NHS TRUST | P134: 2595 | Q134: 1660 | R134: 15265 | S134: =Trust[[#This Row],[Total Bed days]]/Trust[[#This Row],[Admissions]] -> 5.882466281 | T134: 2395.112925 | U134: =Trust[[#This Row],[Admissions]]/Trust[[#This Row],[Patients]] -> 1.563253012 | V134: 0.1272727273 | W134: 0.2345454545
O135: UNIVERSITY HOSPITALS OF MORECAMBE BAY NHS FOUNDATION TRUST | P135: 920 | Q135: 620 | R135: 4535 | S135: =Trust[[#This Row],[Total Bed days]]/Trust[[#This Row],[Admissions]] -> 4.929347826 | T135: 2074.004096 | U135: =Trust[[#This Row],[Admissions]]/Trust[[#This Row],[Patients]] -> 1.483870968 | V135: 0.1 | W135: 0.1947368421
O136: UNIVERSITY HOSPITALS OF NORTH MIDLANDS NHS TRUST | P136: 2455 | Q136: 1540 | R136: 10725 | S136: =Trust[[#This Row],[Total Bed days]]/Trust[[#This Row],[Admissions]] -> 4.368635438 | T136: 2355.051883 | U136: =Trust[[#This Row],[Admissions]]/Trust[[#This Row],[Patients]] -> 1.594155844 | V136: 0.1113243762 | W136: 0.2092130518
O137: UNIVERSITY HOSPITALS PLYMOUTH NHS TRUST | P137: 805 | Q137: 545 | R137: 4625 | S137: =Trust[[#This Row],[Total Bed days]]/Trust[[#This Row],[Admissions]] -> 5.745341615 | T137: 2112.811843 | U137: =Trust[[#This Row],[Admissions]]/Trust[[#This Row],[Patients]] -> 1.47706422 | V137: 0.1040462428 | W137: 0.1907514451
O138: UNIVERSITY HOSPITALS SUSSEX NHS FOUNDATION TRUST | P138: 1710 | Q138: 1145 | R138: 8830 | S138: =Trust[[#This Row],[Total Bed days]]/Trust[[#This Row],[Admissions]] -> 5.16374269 | T138: 2364.952027 | U138: =Trust[[#This Row],[Admissions]]/Trust[[#This Row],[Patients]] -> 1.493449782 | V138: 0.08854166667 | W138: 0.1536458333
O139: WALSALL HEALTHCARE NHS TRUST | P139: 1045 | Q139: 745 | R139: 5040 | S139: =Trust[[#This Row],[Total Bed days]]/Trust[[#This Row],[Admissions]] -> 4.822966507 | T139: 1854.77851 | U139: =Trust[[#This Row],[Admissions]]/Trust[[#This Row],[Patients]] -> 1.402684564 | V139: 0.09322033898 | W139: 0.1779661017
O140: WARRINGTON AND HALTON TEACHING HOSPITALS NHS FOUNDATION TRUST | P140: 585 | Q140: 400 | R140: 3495 | S140: =Trust[[#This Row],[Total Bed days]]/Trust[[#This Row],[Admissions]] -> 5.974358974 | T140: 2764.803209 | U140: =Trust[[#This Row],[Admissions]]/Trust[[#This Row],[Patients]] -> 1.4625 | V140: 0.0703125 | W140: 0.171875
O141: WEST HERTFORDSHIRE TEACHING HOSPITALS NHS TRUST | P141: 820 | Q141: 535 | R141: 4495 | S141: =Trust[[#This Row],[Total Bed days]]/Trust[[#This Row],[Admissions]] -> 5.481707317 | T141: 2502.403683 | U141: =Trust[[#This Row],[Admissions]]/Trust[[#This Row],[Patients]] -> 1.53271028 | V141: 0.0752688172 | W141: 0.1666666667
O142: WEST SUFFOLK NHS FOUNDATION TRUST | P142: 700 | Q142: 450 | R142: 4090 | S142: =Trust[[#This Row],[Total Bed days]]/Trust[[#This Row],[Admissions]] -> 5.842857143 | T142: 2711.447346 | U142: =Trust[[#This Row],[Admissions]]/Trust[[#This Row],[Patients]] -> 1.555555556 | V142: 0.1 | W142: 0.1857142857
O143: WHITTINGTON HEALTH NHS TRUST | P143: 265 | Q143: 170 | R143: 1855 | S143: =Trust[[#This Row],[Total Bed days]]/Trust[[#This Row],[Admissions]] -> 7 | T143: 3197.695868 | U143: =Trust[[#This Row],[Admissions]]/Trust[[#This Row],[Patients]] -> 1.558823529 | V143: 0.07272727273 | W143: 0.1818181818
O144: WILTSHIRE HEALTH & CARE | P144: 7 | Q144: 7 | R144: 110 | S144: =Trust[[#This Row],[Total Bed days]]/Trust[[#This Row],[Admissions]] -> 15.71428571 | T144: 13842.5 | U144: =Trust[[#This Row],[Admissions]]/Trust[[#This Row],[Patients]] -> 1 | V144: 0 | W144: 1
O145: WIRRAL UNIVERSITY TEACHING HOSPITAL NHS FOUNDATION TRUST | P145: 1195 | Q145: 745 | R145: 6440 | S145: =Trust[[#This Row],[Total Bed days]]/Trust[[#This Row],[Admissions]] -> 5.389121339 | T145: 2485.523664 | U145: =Trust[[#This Row],[Admissions]]/Trust[[#This Row],[Patients]] -> 1.604026846 | V145: 0.09163346614 | W145: 0.171314741
O146: WORCESTERSHIRE ACUTE HOSPITALS NHS TRUST | P146: 1050 | Q146: 770 | R146: 5330 | S146: =Trust[[#This Row],[Total Bed days]]/Trust[[#This Row],[Admissions]] -> 5.076190476 | T146: 2409.941604 | U146: =Trust[[#This Row],[Admissions]]/Trust[[#This Row],[Patients]] -> 1.363636364 | V146: 0.06382978723 | W146: 0.1319148936
O147: WRIGHTINGTON, WIGAN AND LEIGH NHS FOUNDATION TRUST | P147: 870 | Q147: 635 | R147: 2995 | S147: =Trust[[#This Row],[Total Bed days]]/Trust[[#This Row],[Admissions]] -> 3.442528736 | T147: 1950.716964 | U147: =Trust[[#This Row],[Admissions]]/Trust[[#This Row],[Patients]] -> 1.37007874 | V147: 0.1299435028 | W147: 0.2033898305
O148: WYE VALLEY NHS TRUST | P148: 440 | Q148: 320 | R148: 2565 | S148: =Trust[[#This Row],[Total Bed days]]/Trust[[#This Row],[Admissions]] -> 5.829545455 | T148: 2353.534459 | U148: =Trust[[#This Row],[Admissions]]/Trust[[#This Row],[Patients]] -> 1.375 | V148: 0.08737864078 | W148: 0.1650485437
O149: YORK AND SCARBOROUGH TEACHING HOSPITALS NHS FOUNDATION TRUST | P149: 1280 | Q149: 795 | R149: 7115 | S149: =Trust[[#This Row],[Total Bed days]]/Trust[[#This Row],[Admissions]] -> 5.55859375 | T149: 2614.02985 | U149: =Trust[[#This Row],[Admissions]]/Trust[[#This Row],[Patients]] -> 1.610062893 | V149: 0.0861423221 | W149: 0.191011236

Sheet Next steps

Sheet Create a report
B2: Please fill in the table below and then click the desired report
B4: Your Email Address | C4: judith.hampson@nhs.net
B5: Report created for: | C5: Dr Judith Hampston
B6: Date | C6: =TODAY() -> 2025-08-12

Sheet ICS report (hidden)
D234: References

Sheet Trust report (hidden)
D235: References

Sheet Report of both (hidden)
D303: References

Sheet References
B4: References
B6: 1 | C6: Bhatt SP, et al. Lancet Reg Health Eur. 2025;13(3):234-243
B7: 2 | C7: Sanofi Data on File. Hospital Episode Statistics for COPD Fiscal Year 2023-2024
B8: 3 | C8: Dupixent Summary of Product Characteristics. Great Britain. 2025.
B9: 4 | C9: National Institute for Health and Care Excellence. Clinical Knowledge Summaries. Chronic obstructive pulmonary disease: How common is it? Last revised February 2025. | D9: https://cks.nice.org.uk/topics/chronic-obstructive-pulmonary-disease/background-information/prevalence-incidence/
B10: 5 | C10: NHS England. Our work: Respiratory disease. | D10: https://www.england.nhs.uk/ourwork/clinical-policy/respiratory-disease/
B11: 6 | C11: NHS England - Transformation Directorate. Digital service to manage high-risk chronic obstructive pulmonary disease (COPD) patients. | D11: https://transform.england.nhs.uk/key-tools-and-info/digital-playbooks/respiratory-digital-playbook/digital-service-to-manage-high-risk-chronic-obstructive-pulmonary-disease-copd-patients/
B12: 7 | C12: NHS. The NHS Long Term Plan. 2019. | D12: https://www.longtermplan.nhs.uk/wp-content/uploads/2019/08/nhs-long-term-plan-version-1.2.pdf
B13: 8 | C13: NHS England. 2025/26 priorities and operational planning guidance | D13: NHS England » 2025/26 priorities and operational planning guidance
B14: 9 | C14: Sanofi Data on file. Frequency of Resources Utilised for COPD Hospital Admissions
